bitfinex/quotes_SOLUSD_20251002
["timestamp","ask_amount","ask_price","bid_price","bid_amount"]
[1759430636486,0.68,231.78,231.73,20.8]
[1759430636792,0.68,231.77,231.74,4.3151808]
[1759430637016,0.68,231.76,231.74,4.3151808]
[1759430637391,0.68,231.75,231.74,4.3151808]
[1759430637804,0.68,231.75,231.73,20.8]
[1759430638110,0.68,231.74,231.73,20.8]
[1759430638906,30.74000001,231.79,231.73,25.11536702]
[1759430639108,0.68,231.78,231.73,25.11536702]
[1759430639320,0.68,231.77,231.73,25.11536702]
[1759430639904,0.68,231.76,231.73,25.11536702]
[1759430640306,1e-08,231.79,231.73,15.10378457]
[1759430640617,0.68,231.78,231.72,4.31548673]
[1759430640918,0.68,231.77,231.72,4.31548673]
[1759430641104,0.68,231.76,231.72,4.31548673]
[1759430641502,4.31425905,231.79,231.68,0.06]
[1759430641713,0.67,231.75,231.62,4.37741645]
[1759430641908,31.41,231.74,231.62,4.37741645]
[1759430642118,0.67,231.73,231.63,20.8]
[1759430642322,0.67,231.72,231.63,20.86]
[1759430642818,0.67,231.72,231.67,20.8]
[1759430643027,0.67,231.71,231.67,20.8]
[1759430643320,0.67,231.7,231.47,20.0]
[1759430643520,0.67,231.69,231.56,0.06]
[1759430643824,0.67,231.69,231.58,20.8]
[1759430644039,0.67,231.68,231.58,20.8]
[1759430644248,0.67,231.67,231.58,20.8]
[1759430644402,0.67,231.67,231.56,0.06]
[1759430644403,0.67,231.66,231.56,0.06]
[1759430644750,0.67,231.66,231.58,20.8]
[1759430644913,0.67,231.66,231.56,0.06]
[1759430644914,0.67,231.66,231.62,20.8]
[1759430645241,15.1921372,231.72,231.63,0.06]
[1759430645242,0.67,231.72,231.63,0.06]
[1759430645454,0.67,231.72,231.64,20.8]
[1759430645805,31.41,231.75,231.65,0.06]
[1759430646045,30.74,231.75,231.65,0.06]
[1759430646721,0.67,231.77,231.65,0.06]
[1759430646917,0.67,231.77,231.68,20.8]
[1759430648356,0.67,231.77,231.72,20.8]
[1759430648562,0.67,231.76,231.72,20.8]
[1759430648741,0.67,231.75,231.72,20.8]
[1759430649667,1e-08,231.79,231.72,20.8]
[1759430649853,0.67,231.74,231.72,20.8]
[1759430650432,0.67,231.77,231.74,20.8]
[1759430650651,0.67,231.76,231.74,20.8]
[1759430650972,0.67,231.78,231.74,20.8]
[1759430651169,1e-08,231.79,231.76,20.8]
[1759430651532,0.67000001,231.79,231.76,20.8]
[1759430652430,1e-08,231.79,231.78,20.8]
[1759430653731,1e-08,231.79,231.78,25.1144361]
[1759430653931,1e-08,231.79,231.78,25.1744361]
[1759430655060,1e-08,231.79,231.78,4.3744361]
[1759430655554,0.67,231.91,231.78,42.69921811]
[1759430655850,0.67,231.91,231.85,20.8]
[1759430657340,0.1,231.92,231.85,20.86]
[1759430657653,0.67,231.9,231.85,20.8]
[1759430657856,0.67,231.89,231.86,4.31294746]
[1759430658057,0.1,231.92,231.89,20.8]
[1759430660068,0.1,231.92,231.9,4.31220353]
[1759430660259,0.1,231.92,231.9,4.37220353]
[1759430660556,0.1,231.92,231.9,4.31220353]
[1759430660758,0.1,231.92,231.9,4.37220353]
[1759430660960,0.1,231.92,231.9,4.31220353]
[1759430661156,0.1,231.92,231.91,0.06]
[1759430661535,1e-08,231.92,231.91,0.06]
[1759430661755,1e-08,231.92,231.91,31.73647521]
[1759430662139,1e-08,231.92,231.91,36.0484928]
[1759430663239,1e-08,231.92,231.91,4.31201759]
[1759430663438,0.67000001,231.92,231.91,4.31201759]
[1759430664060,0.67000001,231.92,231.91,25.11201759]
[1759430664561,0.67000001,231.92,231.91,4.31201759]
[1759430665066,0.67000001,231.92,231.91,25.11201759]
[1759430665262,1e-08,231.92,231.91,25.11201759]
[1759430666055,0.68000001,231.92,231.8,0.06]
[1759430666358,0.68000001,231.92,231.84,20.8]
[1759430666563,0.68,231.91,231.84,20.8]
[1759430666764,0.68,231.9,231.84,20.8]
[1759430666942,0.68,231.89,231.84,20.8]
[1759430667143,0.68,231.88,231.84,20.8]
[1759430667363,0.68,231.88,231.81,10.87647521]
[1759430667662,0.68,231.88,231.84,20.8]
[1759430668041,1e-08,231.92,231.84,20.8]
[1759430668273,0.68,231.87,231.85,4.31313349]
[1759430668444,0.68,231.86,231.83,4.31334914]
[1759430668769,0.68,231.85,231.83,4.31334914]
[1759430669062,0.68,231.85,231.83,25.11334914]
[1759430669543,0.68,231.88,231.83,35.8971131]
[1759430669750,0.68,231.87,231.83,35.8971131]
[1759430670061,0.68,231.86,231.83,35.8971131]
[1759430671839,0.69,231.89,231.87,20.8]
[1759430672159,0.69,231.88,231.87,20.8]
[1759430673067,0.69,231.88,231.87,25.11276146]
[1759430675061,0.69,231.91,231.87,35.89466511]
[1759430675967,0.69,231.9,231.88,10.87647521]
[1759430676156,1e-08,231.92,231.91,20.8]
[1759430676875,0.69000001,231.92,231.88,20.8]
[1759430677079,0.69,231.91,231.88,20.8]
[1759430677253,0.69,231.91,231.89,4.31238949]
[1759430677571,0.69,231.9,231.89,4.31238949]
[1759430678348,1e-08,231.92,231.9,10.87647521]
[1759430678547,1e-08,231.92,231.91,20.8]
[1759430679249,1e-08,231.92,231.91,4.31201759]
[1759430680061,1e-08,231.92,231.91,35.9884928]
[1759430682489,0.1,231.95,231.94,31.67647521]
[1759430682775,0.79,231.95,231.94,31.67647521]
[1759430683664,0.79,231.95,231.94,35.98793507]
[1759430683967,0.79,231.95,231.94,4.31145986]
[1759430684165,0.79,231.95,231.94,25.11145986]
[1759430684870,0.79,231.95,231.94,20.8]
[1759430685477,0.79,231.95,231.94,31.67647521]
[1759430685773,0.79,231.95,231.94,20.8]
[1759430686266,0.79,231.95,231.94,25.11145986]
[1759430687584,0.79,231.95,231.94,20.8]
[1759430688470,0.79,231.95,231.89,4.31224144]
[1759430688782,0.69,231.94,231.88,4.31256727]
[1759430688963,0.69,231.93,231.85,10.78257067]
[1759430689278,0.69,231.92,231.88,20.8]
[1759430689474,0.69,231.91,231.85,10.78257067]
[1759430689785,0.69,231.9,231.88,20.8]
[1759430689985,0.69,231.89,231.85,10.78257067]
[1759430690278,0.69,231.88,231.85,10.78257067]
[1759430690579,0.69,231.87,231.85,10.78257067]
[1759430690968,8.67138729,231.95,231.88,20.8]
[1759430691485,0.69,231.94,231.87,4.31269411]
[1759430691662,0.69,231.93,231.87,4.31269411]
[1759430691857,0.69,231.92,231.87,4.31269411]
[1759430692057,0.69,231.91,231.87,4.31269411]
[1759430692357,0.69,231.9,231.87,4.31269411]
[1759430692772,0.69,231.89,231.87,4.31269411]
[1759430693062,0.69,231.88,231.87,4.31269411]
[1759430693260,0.69,231.88,231.86,20.8]
[1759430693455,0.69,231.87,231.86,20.8]
[1759430693656,0.69,231.87,231.83,4.31332545]
[1759430693983,15.09076013,231.93,231.81,4.31375011]
[1759430693984,0.69,231.86,231.81,4.31375011]
[1759430694168,0.69,231.85,231.82,20.8]
[1759430694372,0.69,231.84,231.82,20.8]
[1759430695584,0.69,231.84,231.82,25.1136495]
[1759430695994,0.69,231.87,231.82,25.1136495]
[1759430696290,0.69,231.86,231.82,25.1136495]
[1759430696493,0.69,231.85,231.82,25.1136495]
[1759430697268,0.69,231.85,231.83,10.87647521]
[1759430697468,0.69,231.85,231.84,4.31331953]
[1759430698185,0.69,231.85,231.82,25.11350728]
[1759430698384,4.3122788,231.9,231.82,25.11350728]
[1759430698587,4.3122788,231.9,231.83,20.8]
[1759430698588,0.69,231.84,231.83,20.8]
[1759430701289,0.69,231.84,231.8,10.87647521]
[1759430701592,0.67,231.83,231.8,10.87647521]
[1759430701776,0.67,231.82,231.8,20.8]
[1759430704780,4.31318374,231.85,231.8,20.8]
[1759430705003,0.67,231.81,231.8,20.8]
[1759430705492,2.44313473,231.81,231.67,4.37648465]
[1759430705690,30.96,231.83,231.67,4.37648465]
[1759430705691,2.44313473,231.8,231.67,4.37648465]
[1759430705904,0.67,231.79,231.71,20.8]
[1759430706194,0.67,231.78,231.71,20.8]
[1759430706502,0.67,231.77,231.71,20.8]
[1759430706797,0.67,231.76,231.71,20.8]
[1759430706999,4.31467318,231.77,231.71,20.8]
[1759430707000,0.67,231.75,231.71,20.8]
[1759430707195,4.31467318,231.77,231.71,20.8]
[1759430707196,0.67,231.74,231.71,20.8]
[1759430707801,4.3144361,231.78,231.71,10.87647521]
[1759430708103,0.67,231.74,231.69,10.87647521]
[1759430708407,0.67,231.73,231.72,20.8]
[1759430709077,0.67,231.73,231.69,10.87647521]
[1759430709408,0.67,231.72,231.71,20.8]
[1759430709618,0.67,231.75,231.71,20.8]
[1759430709778,0.67,231.75,231.6,3.49504368]
[1759430709779,0.67,231.72,231.64,15.1934976]
[1759430709982,0.67,231.71,231.64,15.2534976]
[1759430710207,0.67,231.71,231.64,36.0534976]
[1759430710376,0.67,231.71,231.64,35.9934976]
[1759430712414,0.67,231.73,231.68,10.87647521]
[1759430712626,30.96,231.74,231.68,10.87647521]
[1759430712781,0.67,231.72,231.68,10.87647521]
[1759430712983,20.8,231.82,231.68,10.87647521]
[1759430712984,4.31404818,231.81,231.69,0.06]
[1759430713179,0.67,231.78,231.72,10.87647521]
[1759430713694,0.67,231.78,231.73,4.31536702]
[1759430713896,0.67,231.77,231.73,4.31536702]
[1759430714208,0.67,231.76,231.72,10.87647521]
[1759430714429,0.67,231.75,231.72,10.87647521]
[1759430714602,0.67,231.74,231.7,10.87647521]
[1759430715295,0.67,231.76,231.7,10.87647521]
[1759430715715,0.67,231.76,231.7,15.19221983]
[1759430717918,0.67,231.79,231.74,10.87647521]
[1759430718117,30.94,231.81,231.74,10.93647521]
[1759430718421,0.67,231.82,231.74,10.93647521]
[1759430718634,30.96,231.83,231.77,20.8]
[1759430718923,0.67,231.84,231.78,10.87647521]
[1759430719415,0.67,231.86,231.82,10.87647521]
[1759430719617,31.63,231.89,231.82,10.93647521]
[1759430719822,31.63,231.89,231.82,10.87647521]
[1759430720010,0.67,231.88,231.82,15.19000246]
[1759430724197,0.67,231.88,231.82,10.87647521]
[1759430724531,0.66,231.87,231.82,10.87647521]
[1759430724714,35.27239503,231.89,231.82,10.87647521]
[1759430724715,0.66,231.86,231.82,15.19016201]
[1759430725104,0.66,231.85,231.82,10.87647521]
[1759430726333,0.66,231.87,231.82,10.87647521]
[1759430726628,0.66,231.86,231.82,10.87647521]
[1759430727226,0.66,231.86,231.82,15.19012632]
[1759430728420,30.96,231.89,231.82,10.87647521]
[1759430728628,0.66,231.85,231.82,10.87647521]
[1759430729815,0.66,231.84,231.81,25.11387589]
[1759430730014,0.66,231.84,231.82,10.87647521]
[1759430731429,0.66,231.83,231.82,10.87647521]
[1759430732413,0.66,231.83,231.82,20.8]
[1759430732612,0.68,231.86,231.82,20.8]
[1759430733014,0.68,231.85,231.82,20.8]
[1759430734708,30.96,231.89,231.82,25.11368806]
[1759430735010,31.5,231.88,231.83,10.87647521]
[1759430735205,31.5,231.88,231.75,79.1]
[1759430735206,0.68,231.87,231.76,12.95756397]
[1759430735402,2.76978274,231.85,231.8,20.8]
[1759430735617,0.68,231.84,231.8,20.8]
[1759430735817,0.68,231.83,231.8,20.8]
[1759430736026,0.68,231.82,231.8,20.8]
[1759430736422,0.68,231.81,231.8,20.8]
[1759430736618,4.31332882,231.84,231.8,20.8]
[1759430736929,0.68,231.83,231.8,20.8]
[1759430738237,0.68,231.82,231.8,20.8]
[1759430739230,0.68,231.81,231.8,20.8]
[1759430739413,0.68,231.83,231.8,20.8]
[1759430739616,0.68,231.82,231.8,20.8]
[1759430741714,30.8,231.83,231.8,20.8]
[1759430741921,31.48,231.83,231.8,20.8]
[1759430742119,0.68,231.82,231.8,20.8]
[1759430742329,0.68,231.81,231.8,20.8]
[1759430742642,30.78,231.81,231.8,20.8]
[1759430743069,31.46,231.81,231.8,20.8]
[1759430743532,30.78,231.81,231.8,20.8]
[1759430743910,30.78,231.81,231.8,25.11406384]
[1759430744108,30.76,231.81,231.8,35.99053905]
[1759430744359,31.44,231.81,231.72,12.95980301]
[1759430744564,3.44978274,231.8,231.73,10.87647521]
[1759430744752,0.68,231.79,231.71,10.87647521]
[1759430744948,0.68,231.78,231.75,10.87647521]
[1759430745151,33.52978274,231.8,231.75,10.87647521]
[1759430745152,0.68,231.77,231.75,10.87647521]
[1759430745356,31.46,231.77,231.75,10.87647521]
[1759430745660,0.68,231.76,231.71,4.31573669]
[1759430745965,0.68,231.75,231.71,4.31573669]
[1759430746148,0.68,231.75,231.72,20.8]
[1759430746352,0.68,231.75,231.71,4.31573669]
[1759430746751,0.68,231.75,231.72,20.8]
[1759430747147,0.68,231.78,231.73,10.87647521]
[1759430747463,30.76,231.76,231.73,10.87647521]
[1759430747667,0.68,231.8,231.75,10.87647521]
[1759430747973,30.78,231.77,231.75,10.87647521]
[1759430749671,30.78,231.77,231.72,4.31540442]
[1759430749964,0.68,231.76,231.73,10.87647521]
[1759430750548,0.68,231.75,231.73,10.87647521]
[1759430750745,0.68,231.74,231.73,10.87647521]
[1759430751759,0.68,231.76,231.71,25.11573842]
[1759430751939,30.78,231.77,231.72,10.87647521]
[1759430752139,30.78,231.77,231.74,10.87647521]
[1759430752749,30.76,231.76,231.74,10.87647521]
[1759430753862,0.68,231.78,231.74,10.87647521]
[1759430754065,30.76,231.76,231.74,10.87647521]
[1759430757340,30.76,231.76,231.74,15.19156782]
[1759430757544,0.68,231.84,231.78,10.87647521]
[1759430757761,31.46,231.84,231.78,10.87647521]
[1759430758375,30.78,231.84,231.79,0.06]
[1759430758558,0.68,231.9,231.81,31.67647521]
[1759430758878,30.78,231.89,231.82,0.06]
[1759430759054,30.78,231.89,231.82,4.37369165]
[1759430759870,30.78,231.89,231.86,31.67647521]
[1759430760371,0.68,231.93,231.86,31.67647521]
[1759430760669,0.68,231.93,231.86,31.73647521]
[1759430760871,30.78,231.92,231.86,31.73647521]
[1759430761053,30.78,231.92,231.88,10.87647521]
[1759430762073,0.7,231.91,231.86,20.8]
[1759430762369,0.7,231.9,231.86,20.8]
[1759430762553,31.48,231.92,231.86,20.8]
[1759430762868,31.48,231.92,231.89,10.87647521]
[1759430763093,0.7,231.91,231.89,10.87647521]
[1759430764250,30.78,231.92,231.89,4.31235152]
[1759430764464,30.76,231.92,231.89,25.11235152]
[1759430765170,31.46,231.92,231.89,25.11235152]
[1759430765749,0.1,231.95,231.89,25.11235152]
[1759430765956,31.46,231.94,231.9,10.87647521]
[1759430766254,0.7,231.93,231.9,10.87647521]
[1759430766460,30.76,231.94,231.9,10.87647521]
[1759430766753,0.7,231.93,231.9,10.87647521]
[1759430767264,0.7,231.92,231.89,20.8]
[1759430767470,0.7,231.91,231.89,20.8]
[1759430767849,0.7,231.93,231.89,25.11238465]
[1759430768076,0.7,231.92,231.89,25.11238465]
[1759430768270,0.7,231.91,231.89,25.11238465]
[1759430768658,30.76,231.94,231.89,25.11238465]
[1759430768973,0.7,231.94,231.9,10.87647521]
[1759430769184,30.74,231.94,231.9,10.93647521]
[1759430769363,0.1,231.95,231.93,20.8]
[1759430769555,0.1,231.95,231.94,10.87647521]
[1759430769876,0.1,231.95,231.94,0.06]
[1759430770177,0.1,231.95,231.94,36.04793507]
[1759430770479,0.1,231.95,231.94,37.77419362]
[1759430770653,0.1,231.95,231.94,35.98793507]
[1759430772183,0.1,231.95,231.94,36.04793507]
[1759430776759,1e-08,231.95,231.94,36.04793507]
[1759430777366,1e-08,231.95,231.94,66.74793507]
[1759430777565,1e-08,231.95,231.94,66.68793507]
[1759430777768,1e-08,231.95,231.94,66.74793507]
[1759430778782,1e-08,231.95,231.94,66.68793507]
[1759430779588,1e-08,231.95,231.94,79.63487419]
[1759430780657,0.70000001,231.95,231.94,35.98793507]
[1759430780859,1e-08,231.95,231.94,35.98793507]
[1759430781169,0.70000001,231.95,231.94,35.98793507]
[1759430782983,1e-08,231.95,231.94,35.98793507]
[1759430783579,0.70000001,231.95,231.94,35.98793507]
[1759430784088,1e-08,231.95,231.94,35.98793507]
[1759430784867,0.68,231.97,231.94,35.98793507]
[1759430784868,0.1,232.03,231.94,99.47503]
[1759430785068,0.1,232.03,231.99,31.67647521]
[1759430785870,0.68,232.02,231.99,31.67647521]
[1759430786070,0.1,232.03,232.0,0.06]
[1759430786281,0.1,232.03,231.99,62.35647521]
[1759430786483,0.1,232.03,231.99,62.41647521]
[1759430786689,0.1,232.03,232.0,0.06]
[1759430787081,0.1,232.03,232.02,31.67647521]
[1759430788171,0.1,232.03,232.02,35.98644848]
[1759430788866,0.78,232.03,232.02,35.98644848]
[1759430789289,0.1,232.03,232.02,35.98644848]
[1759430789474,0.78,232.03,232.02,35.98644848]
[1759430790291,0.1,232.03,232.02,35.98644848]
[1759430792687,0.76,232.03,232.02,35.98644848]
[1759430793491,0.1,232.03,232.02,35.98644848]
[1759430795064,0.66,232.08,232.02,46.82138167]
[1759430795265,0.66,232.08,232.07,10.87647521]
[1759430795491,0.10000001,232.11,232.1,31.67647521]
[1759430795973,0.76000001,232.11,232.1,31.67647521]
[1759430796173,0.76000001,232.11,232.05,20.8]
[1759430796394,0.66,232.1,232.09,31.67647521]
[1759430798207,0.10000001,232.11,232.1,10.87647521]
[1759430798502,0.10000001,232.11,232.1,15.18496293]
[1759430799106,0.10000001,232.11,232.1,66.62496293]
[1759430799278,0.10000001,232.11,232.1,35.98496293]
[1759430799477,0.10000001,232.11,232.1,66.62496293]
[1759430800198,0.10000001,232.11,232.1,35.98496293]
[1759430800393,0.76000001,232.11,232.1,15.18496293]
[1759430800623,0.10000001,232.11,232.1,15.18496293]
[1759430801302,0.1,232.14,232.13,31.67647521]
[1759430802106,0.76,232.14,232.13,31.67647521]
[1759430805200,0.76,232.14,232.13,20.8]
[1759430805706,0.76,232.14,232.13,31.67647521]
[1759430807187,0.1,232.14,232.13,31.67647521]
[1759430807699,0.1,232.14,232.13,35.98440611]
[1759430808151,0.76,232.14,232.13,35.98440611]
[1759430808986,0.76,232.14,232.13,31.67647521]
[1759430810608,0.76,232.14,232.13,35.98440611]
[1759430811506,0.1,232.14,232.13,35.98440611]
[1759430812605,0.76,232.14,232.13,35.98440611]
[1759430813182,0.1,232.14,232.13,35.98440611]
[1759430813685,0.76,232.14,232.13,35.98440611]
[1759430814000,0.76,232.14,232.13,31.67647521]
[1759430816205,0.76,232.14,232.13,35.98440611]
[1759430818395,0.1,232.14,232.13,35.98440611]
[1759430820012,0.76,232.14,232.13,35.98440611]
[1759430820326,0.1,232.14,232.13,35.98440611]
[1759430821117,0.76,232.14,232.13,35.98440611]
[1759430821411,0.1,232.14,232.13,35.98440611]
[1759430822216,0.8,232.14,232.13,31.67647521]
[1759430822598,0.8,232.14,232.13,20.8]
[1759430823011,0.8,232.14,232.13,25.1079309]
[1759430823204,0.1,232.14,232.13,35.98440611]
[1759430823398,0.8,232.14,232.13,35.98440611]
[1759430826922,0.1,232.14,232.13,35.98440611]
[1759430828010,0.8,232.14,232.12,4.30810353]
[1759430828200,0.7,232.13,232.12,4.30810353]
[1759430828827,0.7,232.13,232.1,15.18486392]
[1759430829128,0.7,232.12,232.1,10.87647521]
[1759430829504,0.7,232.11,232.03,10.77419628]
[1759430829700,0.7,232.1,231.99,15.18700583]
[1759430830030,0.7,232.09,232.01,10.87647521]
[1759430830234,0.7,232.08,232.05,10.87647521]
[1759430830524,0.7,232.07,232.04,20.8]
[1759430830738,0.7,232.06,232.05,10.87647521]
[1759430830911,0.7,232.08,232.07,20.8]
[1759430832020,0.7,232.08,232.07,25.10904468]
[1759430832209,0.2,232.08,232.07,25.10904468]
[1759430832800,1.86937804,232.14,232.07,25.10904468]
[1759430833219,1.76937804,232.13,232.07,20.8]
[1759430833821,0.1,232.14,232.09,10.87647521]
[1759430834129,0.1,232.14,232.11,10.87647521]
[1759430834308,0.1,232.14,232.08,10.87647521]
[1759430834910,0.1,232.14,232.08,11.43647521]
[1759430835226,0.8,232.14,232.08,10.87647521]
[1759430835616,0.8,232.14,232.1,10.87647521]
[1759430836536,0.1,232.14,232.1,10.87647521]
[1759430836739,0.1,232.14,232.11,4.30830209]
[1759430837042,0.8,232.14,232.11,4.30830209]
[1759430837932,0.1,232.14,232.11,15.07905733]
[1759430838113,0.1,232.14,232.12,11.43647521]
[1759430838304,0.1,232.14,232.12,10.87647521]
[1759430839640,0.7,232.13,232.12,10.87647521]
[1759430839831,0.1,232.14,232.12,10.87647521]
[1759430840019,0.8,232.14,232.12,10.87647521]
[1759430840226,0.8,232.14,232.12,15.18446719]
[1759430840420,0.7,232.13,232.11,25.10821799]
[1759430840724,0.1,232.14,232.11,20.8]
[1759430841033,0.7,232.13,232.11,25.10830021]
[1759430841831,0.1,232.14,232.11,25.10830021]
[1759430842230,0.1,232.14,232.12,11.43647521]
[1759430842641,0.1,232.14,232.12,10.87647521]
[1759430845130,0.1,232.14,232.13,15.18440611]
[1759430851748,0.8,232.14,232.13,15.18440611]
[1759430852336,0.8,232.14,232.13,10.87647521]
[1759430852727,0.8,232.14,232.12,79.1]
[1759430852933,0.7,232.13,232.12,79.1]
[1759430853319,0.7,232.13,232.12,83.40811649]
[1759430853723,0.7,232.13,232.12,4.30811649]
[1759430854639,0.7,232.13,232.11,25.10829658]
[1759430854842,0.7,232.12,232.11,25.10829658]
[1759430855241,0.8,232.14,232.11,25.10829658]
[1759430855955,0.7,232.13,232.11,25.10829658]
[1759430856635,1e-08,232.14,232.13,31.67647521]
[1759430857049,1e-08,232.14,232.13,62.83647521]
[1759430857244,1e-08,232.14,232.13,31.67647521]
[1759430857540,1e-08,232.14,232.13,32.23647521]
[1759430858053,1e-08,232.14,232.13,36.54440611]
[1759430860684,1e-08,232.14,232.13,38.2693991]
[1759430861150,0.1,232.16,232.14,10.87647521]
[1759430861355,0.1,232.16,232.15,10.87647521]
[1759430861650,0.1,232.16,232.14,10.87647521]
[1759430861843,0.1,232.16,232.15,4.30755976]
[1759430862159,0.1,232.16,232.15,35.98403497]
[1759430863138,0.1,232.16,232.15,67.12403497]
[1759430864351,0.7,232.22,232.2,10.87647521]
[1759430865269,0.1,232.27,232.2,10.87647521]
[1759430865466,0.7,232.22,232.2,10.87647521]
[1759430865969,0.1,232.27,232.24,10.87647521]
[1759430865970,0.7,232.25,232.24,10.87647521]
[1759430866166,0.1,232.27,232.24,10.87647521]
[1759430866167,0.1,232.27,232.26,35.98199488]
[1759430866372,0.28318228,232.36,232.3,31.67647521]
[1759430867160,200.7,232.31,232.26,15.06931886]
[1759430867358,0.7,232.3,232.29,31.67647521]
[1759430867756,0.7,232.3,232.28,20.8]
[1759430868076,0.7,232.3,232.29,10.87647521]
[1759430868370,200.0,232.31,232.29,15.18143883]
[1759430870052,200.0,232.31,232.29,15.74143883]
[1759430870247,200.0,232.31,232.3,42.01647521]
[1759430871178,200.0,232.31,232.3,10.87647521]
[1759430871470,200.0,232.31,232.3,41.45647521]
[1759430872075,200.0,232.31,232.3,10.87647521]
[1759430872371,200.0,232.31,232.3,41.45647521]
[1759430872569,200.0,232.31,232.3,10.87647521]
[1759430873553,200.7,232.31,232.3,10.87647521]
[1759430873958,200.7,232.31,232.27,10.87647521]
[1759430874159,0.7,232.3,232.27,10.87647521]
[1759430874364,0.7,232.29,232.28,15.18162416]
[1759430875273,0.7,232.29,232.28,10.87647521]
[1759430876260,0.7,232.29,232.24,10.87647521]
[1759430876468,0.7,232.28,232.24,15.18233593]
[1759430876779,233.34230987,232.31,232.24,15.18233593]
[1759430876780,0.7,232.27,232.24,15.18233593]
[1759430877078,0.7,232.26,232.24,15.18233593]
[1759430878375,230.58,232.31,232.24,20.8]
[1759430878376,0.7,232.25,232.24,20.8]
[1759430878553,230.58,232.31,232.24,31.67647521]
[1759430878761,0.7,232.27,232.24,20.8]
[1759430879079,0.7,232.26,232.24,10.87647521]
[1759430879764,0.7,232.25,232.24,10.87647521]
[1759430879966,0.7,232.28,232.24,15.18229216]
[1759430880167,0.7,232.3,232.24,15.18229216]
[1759430880380,0.7,232.3,232.28,10.87647521]
[1759430880686,230.58,232.31,232.28,10.87647521]
[1759430880976,0.7,232.29,232.28,10.87647521]
[1759430881752,231.29,232.31,232.28,10.87647521]
[1759430881953,0.71,232.3,232.28,10.87647521]
[1759430882179,230.58,232.31,232.28,10.87647521]
[1759430882383,0.71,232.29,232.28,10.87647521]
[1759430883284,0.71,232.29,232.28,15.18162416]
[1759430883582,230.56,232.31,232.28,15.18162416]
[1759430883779,231.27,232.31,232.28,15.18162416]
[1759430883984,230.56,232.31,232.28,15.18162416]
[1759430884167,200.0,232.31,232.3,31.67647521]
[1759430884483,58.79044957,232.31,232.3,45.16221682]
[1759430884682,18.93998221,232.31,232.3,45.16221682]
[1759430884976,0.28318228,232.36,232.35,10.87647521]
[1759430885679,30.27,232.42,232.37,20.8]
[1759430885861,29.56,232.42,232.37,31.67647521]
[1759430886054,0.71,232.5,232.44,35.97866072]
[1759430886578,1.21,232.45,232.44,31.67647521]
[1759430886957,1.21,232.45,232.41,10.87647521]
[1759430886958,0.5,232.45,232.41,10.87647521]
[1759430887157,0.5,232.45,232.43,10.87647521]
[1759430888059,0.71,232.5,232.47,10.87647521]
[1759430888387,0.71,232.49,232.47,15.17808055]
[1759430888578,0.71,232.48,232.47,10.87647521]
[1759430889570,200.0,232.52,232.47,10.87647521]
[1759430889771,0.71,232.51,232.39,12.92240098]
[1759430889974,200.0,232.52,232.4,10.87647521]
[1759430889975,31.61,232.5,232.4,10.87647521]
[1759430890168,0.71,232.49,232.42,10.87647521]
[1759430890379,0.71,232.49,232.42,31.67647521]
[1759430891170,0.71,232.49,232.46,10.87647521]